{"text_format":"1","workbook":"xlsx","n_sheets":5,"sheets":["Diverse","Lager","FIFO-lagerstying","Lagerplukliste","Søg i beholdere"],"not_rendered":{"charts":0,"images":0,"macros":1,"external_links":0,"defined_names":14,"comments":0,"pivot_tables":0},"unopened":[],"bounds":{"document_bytes":16777216,"sheet_cells":100000,"rows_first":2000,"rows_last":500,"rows_between":2000,"halvings":0,"cell_chars":16384,"cell_head_chars":4096},"cells_cut":0,"cells_raw":0,"read":"whole","date_system":"1900"}

{"sheet":"Diverse","index":0,"n_rows":15,"n_cols":11,"rows_kept":15,"cut":false,"hidden":false,"merged":[]}
[null,"LAGERLISTE"]
[null,"SAMLET LAGERVÆRDI:","LAGERVARER:","ANTAL BEHOLDERE:","LAGERPLUKLISTE","SØG I BEHOLDERE"]
[null,{"$f":"SUM(LagerListe3[LAGERVÆRDI])","v":4649},{"$f":"COUNTA(LagerListe3[BESKRIVELSE])","v":11},{"$f":"SUMPRODUCT((1/COUNTIF(LagerListe3[BEHOLDERNUMMER],LagerListe3[BEHOLDERNUMMER]&\"\")))","v":6}]
[null,"VARENUMMER","BESKRIVELSE","BEHOLDERNUMMER","PLACERING","ENHED","MÆNGDE","ANTAL GENBESTILLINGER","PRIS","LAGERVÆRDI","GENBESTILLING"]
[null,"SP7875","Vare 1","T345",{"$f":"IFERROR(VLOOKUP(LagerListe3[[#This Row],[BEHOLDERNUMMER]],SøgIBeholder[],3,FALSE),\"\")","v":"Række 2, plads 1"},"Hver",20,10,30,{"$f":"LagerListe3[[#This Row],[MÆNGDE]]*LagerListe3[[#This Row],[PRIS]]","v":600},{"$f":"IFERROR(IF(LagerListe3[[#This Row],[MÆNGDE]]<=LagerListe3[[#This Row],[ANTAL GENBESTILLINGER]],1,0),0)","v":0}]
[null,"TR87680","Vare 2","T345",{"$f":"IFERROR(VLOOKUP(LagerListe3[[#This Row],[BEHOLDERNUMMER]],SøgIBeholder[],3,FALSE),\"\")","v":"Række 2, plads 1"},"Hver",30,15,40,{"$f":"LagerListe3[[#This Row],[MÆNGDE]]*LagerListe3[[#This Row],[PRIS]]","v":1200},{"$f":"IFERROR(IF(LagerListe3[[#This Row],[MÆNGDE]]<=LagerListe3[[#This Row],[ANTAL GENBESTILLINGER]],1,0),0)","v":0}]
[null,"MK676554","Vare 3","T5789",{"$f":"IFERROR(VLOOKUP(LagerListe3[[#This Row],[BEHOLDERNUMMER]],SøgIBeholder[],3,FALSE),\"\")","v":"Række 1, plads 1"},"Hver",10,5,5,{"$f":"LagerListe3[[#This Row],[MÆNGDE]]*LagerListe3[[#This Row],[PRIS]]","v":50},{"$f":"IFERROR(IF(LagerListe3[[#This Row],[MÆNGDE]]<=LagerListe3[[#This Row],[ANTAL GENBESTILLINGER]],1,0),0)","v":0}]
[null,"YE98767","Vare 4","T9876",{"$f":"IFERROR(VLOOKUP(LagerListe3[[#This Row],[BEHOLDERNUMMER]],SøgIBeholder[],3,FALSE),\"\")","v":"Række 3, plads 2"},"Felt (10 ct)",40,10,15,{"$f":"LagerListe3[[#This Row],[MÆNGDE]]*LagerListe3[[#This Row],[PRIS]]","v":600},{"$f":"IFERROR(IF(LagerListe3[[#This Row],[MÆNGDE]]<=LagerListe3[[#This Row],[ANTAL GENBESTILLINGER]],1,0),0)","v":0}]
[null,"XR23423","Vare 5","T098",{"$f":"IFERROR(VLOOKUP(LagerListe3[[#This Row],[BEHOLDERNUMMER]],SøgIBeholder[],3,FALSE),\"\")","v":"Række 3, plads 1"},"Hver",12,10,26,{"$f":"LagerListe3[[#This Row],[MÆNGDE]]*LagerListe3[[#This Row],[PRIS]]","v":312},{"$f":"IFERROR(IF(LagerListe3[[#This Row],[MÆNGDE]]<=LagerListe3[[#This Row],[ANTAL GENBESTILLINGER]],1,0),0)","v":0}]
[null,"PW98762","Vare 6","T345",{"$f":"IFERROR(VLOOKUP(LagerListe3[[#This Row],[BEHOLDERNUMMER]],SøgIBeholder[],3,FALSE),\"\")","v":"Række 2, plads 1"},"Hver",7,10,50,{"$f":"LagerListe3[[#This Row],[MÆNGDE]]*LagerListe3[[#This Row],[PRIS]]","v":350},{"$f":"IFERROR(IF(LagerListe3[[#This Row],[MÆNGDE]]<=LagerListe3[[#This Row],[ANTAL GENBESTILLINGER]],1,0),0)","v":1}]
[null,"BM87684","Vare 7","T349",{"$f":"IFERROR(VLOOKUP(LagerListe3[[#This Row],[BEHOLDERNUMMER]],SøgIBeholder[],3,FALSE),\"\")","v":"Række 1, plads 2"},"Hver",10,5,10,{"$f":"LagerListe3[[#This Row],[MÆNGDE]]*LagerListe3[[#This Row],[PRIS]]","v":100},{"$f":"IFERROR(IF(LagerListe3[[#This Row],[MÆNGDE]]<=LagerListe3[[#This Row],[ANTAL GENBESTILLINGER]],1,0),0)","v":0}]
[null,"BH67655","Vare 8","T5789",{"$f":"IFERROR(VLOOKUP(LagerListe3[[#This Row],[BEHOLDERNUMMER]],SøgIBeholder[],3,FALSE),\"\")","v":"Række 1, plads 1"},"Hver",19,10,3,{"$f":"LagerListe3[[#This Row],[MÆNGDE]]*LagerListe3[[#This Row],[PRIS]]","v":57},{"$f":"IFERROR(IF(LagerListe3[[#This Row],[MÆNGDE]]<=LagerListe3[[#This Row],[ANTAL GENBESTILLINGER]],1,0),0)","v":0}]
[null,"WT98768","Vare 9","T9875",{"$f":"IFERROR(VLOOKUP(LagerListe3[[#This Row],[BEHOLDERNUMMER]],SøgIBeholder[],3,FALSE),\"\")","v":"Række 2, plads 2"},"Pakke (5 ct)",20,30,14,{"$f":"LagerListe3[[#This Row],[MÆNGDE]]*LagerListe3[[#This Row],[PRIS]]","v":280},{"$f":"IFERROR(IF(LagerListe3[[#This Row],[MÆNGDE]]<=LagerListe3[[#This Row],[ANTAL GENBESTILLINGER]],1,0),0)","v":1}]
[null,"TS3456","Vare 10","T349",{"$f":"IFERROR(VLOOKUP(LagerListe3[[#This Row],[BEHOLDERNUMMER]],SøgIBeholder[],3,FALSE),\"\")","v":"Række 1, plads 2"},"Hver",15,8,60,{"$f":"LagerListe3[[#This Row],[MÆNGDE]]*LagerListe3[[#This Row],[PRIS]]","v":900},{"$f":"IFERROR(IF(LagerListe3[[#This Row],[MÆNGDE]]<=LagerListe3[[#This Row],[ANTAL GENBESTILLINGER]],1,0),0)","v":0}]
[null,"WDG123","Vare 11","T349",{"$f":"IFERROR(VLOOKUP(LagerListe3[[#This Row],[BEHOLDERNUMMER]],SøgIBeholder[],3,FALSE),\"\")","v":"Række 1, plads 2"},"Hver",25,15,8,{"$f":"LagerListe3[[#This Row],[MÆNGDE]]*LagerListe3[[#This Row],[PRIS]]","v":200},{"$f":"IFERROR(IF(LagerListe3[[#This Row],[MÆNGDE]]<=LagerListe3[[#This Row],[ANTAL GENBESTILLINGER]],1,0),0)","v":0}]

{"sheet":"Lager","index":1,"n_rows":33,"n_cols":11,"rows_kept":33,"cut":false,"hidden":false,"merged":[]}
[null,"LAGERLISTE - Butikken"]
[null,"SAMLET LAGERVÆRDI:","LAGERVARER:","ANTAL BEHOLDERE:","LAGERPLUKLISTE","SØG I BEHOLDERE"]
[null,{"$f":"SUM(LagerListe[LAGERVÆRDI])","v":5877.88},{"$f":"COUNTA(LagerListe[BESKRIVELSE])","v":0},{"$f":"SUMPRODUCT((1/COUNTIF(LagerListe[BEHOLDERNUMMER],LagerListe[BEHOLDERNUMMER]&\"\")))","v":2.0000000000000027}]
[null,"VARENUMMER","BESKRIVELSE","BEHOLDERNUMMER","PLACERING","ENHED","MÆNGDE","ANTAL GENBESTILLINGER","PRIS","LAGERVÆRDI","GENBESTILLING"]
[null,"Cuba Caramel",null,null,{"$f":"IFERROR(VLOOKUP(LagerListe[[#This Row],[BEHOLDERNUMMER]],SøgIBeholder[],3,FALSE),\"\")","v":""},0.7,14,12,80,{"$f":"LagerListe[[#This Row],[MÆNGDE]]*LagerListe[[#This Row],[PRIS]]","v":1120},{"$f":"IFERROR(IF(LagerListe[[#This Row],[MÆNGDE]]<=LagerListe[[#This Row],[ANTAL GENBESTILLINGER]],1,0),0)","v":0}]
[null,"Smirnoff",null,"T345",{"$f":"IFERROR(VLOOKUP(LagerListe[[#This Row],[BEHOLDERNUMMER]],SøgIBeholder[],3,FALSE),\"\")","v":"Række 2, plads 1"},0.7,3,12,90,{"$f":"LagerListe[[#This Row],[MÆNGDE]]*LagerListe[[#This Row],[PRIS]]","v":270},{"$f":"IFERROR(IF(LagerListe[[#This Row],[MÆNGDE]]<=LagerListe[[#This Row],[ANTAL GENBESTILLINGER]],1,0),0)","v":1}]
[null,"Gin",null,null,"Under rack",0.7,5,12,89,{"$f":"LagerListe[[#This Row],[MÆNGDE]]*LagerListe[[#This Row],[PRIS]]","v":445},{"$f":"IFERROR(IF(LagerListe[[#This Row],[MÆNGDE]]<=LagerListe[[#This Row],[ANTAL GENBESTILLINGER]],1,0),0)","v":1}]
[null,"Lys Bacardi",null,null,"Under rack",0.7,8,12,95,{"$f":"LagerListe[[#This Row],[MÆNGDE]]*LagerListe[[#This Row],[PRIS]]","v":760},{"$f":"IFERROR(IF(LagerListe[[#This Row],[MÆNGDE]]<=LagerListe[[#This Row],[ANTAL GENBESTILLINGER]],1,0),0)","v":1}]
[null,"Tequila",null,null,"Under rack",0.7,2,12,88,{"$f":"LagerListe[[#This Row],[MÆNGDE]]*LagerListe[[#This Row],[PRIS]]","v":176},{"$f":"IFERROR(IF(LagerListe[[#This Row],[MÆNGDE]]<=LagerListe[[#This Row],[ANTAL GENBESTILLINGER]],1,0),0)","v":1}]
[null,"Malibu",null,null,"Under rack",0.7,1,12,90,{"$f":"LagerListe[[#This Row],[MÆNGDE]]*LagerListe[[#This Row],[PRIS]]","v":90},{"$f":"IFERROR(IF(LagerListe[[#This Row],[MÆNGDE]]<=LagerListe[[#This Row],[ANTAL GENBESTILLINGER]],1,0),0)","v":1}]
[null,"Sirup"]
[null,"Sukkersirup",null,null,"Under rack",0.7,6,6,55,{"$f":"LagerListe[[#This Row],[MÆNGDE]]*LagerListe[[#This Row],[PRIS]]","v":330},{"$f":"IFERROR(IF(LagerListe[[#This Row],[MÆNGDE]]<=LagerListe[[#This Row],[ANTAL GENBESTILLINGER]],1,0),0)","v":1}]
[null,"Limesirup",null,null,"Under rack",0.7,2,12,35,{"$f":"LagerListe[[#This Row],[MÆNGDE]]*LagerListe[[#This Row],[PRIS]]","v":70},{"$f":"IFERROR(IF(LagerListe[[#This Row],[MÆNGDE]]<=LagerListe[[#This Row],[ANTAL GENBESTILLINGER]],1,0),0)","v":1}]
[null,"Mangosirup",null,null,"Under rack",0.7,0,12,60,{"$f":"LagerListe[[#This Row],[MÆNGDE]]*LagerListe[[#This Row],[PRIS]]","v":0},{"$f":"IFERROR(IF(LagerListe[[#This Row],[MÆNGDE]]<=LagerListe[[#This Row],[ANTAL GENBESTILLINGER]],1,0),0)","v":1}]
[null,"Mangosirup",null,null,"Under rack",0.5,5,0,null,{"$f":"LagerListe[[#This Row],[MÆNGDE]]*LagerListe[[#This Row],[PRIS]]","v":0},{"$f":"IFERROR(IF(LagerListe[[#This Row],[MÆNGDE]]<=LagerListe[[#This Row],[ANTAL GENBESTILLINGER]],1,0),0)","v":0}]
[null,"Ferskensirup",null,null,"Under rack",0.7,2,6,55,{"$f":"LagerListe[[#This Row],[MÆNGDE]]*LagerListe[[#This Row],[PRIS]]","v":110},{"$f":"IFERROR(IF(LagerListe[[#This Row],[MÆNGDE]]<=LagerListe[[#This Row],[ANTAL GENBESTILLINGER]],1,0),0)","v":1}]
[null,"Grenadine",null,null,"Under rack",0.7,1,6,60,{"$f":"LagerListe[[#This Row],[MÆNGDE]]*LagerListe[[#This Row],[PRIS]]","v":60},{"$f":"IFERROR(IF(LagerListe[[#This Row],[MÆNGDE]]<=LagerListe[[#This Row],[ANTAL GENBESTILLINGER]],1,0),0)","v":1}]
[null,"Curacao",null,null,"Under rack",0.7,4,6,55,{"$f":"LagerListe[[#This Row],[MÆNGDE]]*LagerListe[[#This Row],[PRIS]]","v":220},{"$f":"IFERROR(IF(LagerListe[[#This Row],[MÆNGDE]]<=LagerListe[[#This Row],[ANTAL GENBESTILLINGER]],1,0),0)","v":1}]
[null,"Kokossirup",null,null,"Under rack",0.7,3,6,55,{"$f":"LagerListe[[#This Row],[MÆNGDE]]*LagerListe[[#This Row],[PRIS]]","v":165},{"$f":"IFERROR(IF(LagerListe[[#This Row],[MÆNGDE]]<=LagerListe[[#This Row],[ANTAL GENBESTILLINGER]],1,0),0)","v":1}]
[null,"Mixer"]
[null,"Rød Sodavand",null,null,"I køleskab",0.33,27,48,3.92,{"$f":"LagerListe[[#This Row],[MÆNGDE]]*LagerListe[[#This Row],[PRIS]]","v":105.84},{"$f":"IFERROR(IF(LagerListe[[#This Row],[MÆNGDE]]<=LagerListe[[#This Row],[ANTAL GENBESTILLINGER]],1,0),0)","v":1}]
[null,"Grøn Sodavand",null,null,"I køleskab",0.33,38,48,3.92,{"$f":"LagerListe[[#This Row],[MÆNGDE]]*LagerListe[[#This Row],[PRIS]]","v":148.96},{"$f":"IFERROR(IF(LagerListe[[#This Row],[MÆNGDE]]<=LagerListe[[#This Row],[ANTAL GENBESTILLINGER]],1,0),0)","v":1}]
[null,"Ananasjuice",null,null,"Hylde",1,16,12,19,{"$f":"LagerListe[[#This Row],[MÆNGDE]]*LagerListe[[#This Row],[PRIS]]","v":304},{"$f":"IFERROR(IF(LagerListe[[#This Row],[MÆNGDE]]<=LagerListe[[#This Row],[ANTAL GENBESTILLINGER]],1,0),0)","v":0}]
[null,"Appelsinjuice",null,null,"Hylde",1.5,11,12,5,{"$f":"LagerListe[[#This Row],[MÆNGDE]]*LagerListe[[#This Row],[PRIS]]","v":55},{"$f":"IFERROR(IF(LagerListe[[#This Row],[MÆNGDE]]<=LagerListe[[#This Row],[ANTAL GENBESTILLINGER]],1,0),0)","v":1}]
[null,"Appelsinjuice",null,null,"Hylde",1.75,3,0,null,{"$f":"LagerListe[[#This Row],[MÆNGDE]]*LagerListe[[#This Row],[PRIS]]","v":0},{"$f":"IFERROR(IF(LagerListe[[#This Row],[MÆNGDE]]<=LagerListe[[#This Row],[ANTAL GENBESTILLINGER]],1,0),0)","v":0}]
[null,"Tranebærjuice",null,null,"Hylde",1,7,8,16.5,{"$f":"LagerListe[[#This Row],[MÆNGDE]]*LagerListe[[#This Row],[PRIS]]","v":115.5},{"$f":"IFERROR(IF(LagerListe[[#This Row],[MÆNGDE]]<=LagerListe[[#This Row],[ANTAL GENBESTILLINGER]],1,0),0)","v":1}]
[null,"Danskvand",null,null,"Hylde",2,3,8,6,{"$f":"LagerListe[[#This Row],[MÆNGDE]]*LagerListe[[#This Row],[PRIS]]","v":18},{"$f":"IFERROR(IF(LagerListe[[#This Row],[MÆNGDE]]<=LagerListe[[#This Row],[ANTAL GENBESTILLINGER]],1,0),0)","v":1}]
[null,"Danskvand",null,null,"Hylde",0.5,0,24,3.85,{"$f":"LagerListe[[#This Row],[MÆNGDE]]*LagerListe[[#This Row],[PRIS]]","v":0},{"$f":"IFERROR(IF(LagerListe[[#This Row],[MÆNGDE]]<=LagerListe[[#This Row],[ANTAL GENBESTILLINGER]],1,0),0)","v":1}]
[null,"Lemonsoda",null,null,"I køleskab",0.33,15,36,4.5,{"$f":"LagerListe[[#This Row],[MÆNGDE]]*LagerListe[[#This Row],[PRIS]]","v":67.5},{"$f":"IFERROR(IF(LagerListe[[#This Row],[MÆNGDE]]<=LagerListe[[#This Row],[ANTAL GENBESTILLINGER]],1,0),0)","v":1}]
[null,"Lemonsoda",null,null,"Hylde",1.5,8,12,6,{"$f":"LagerListe[[#This Row],[MÆNGDE]]*LagerListe[[#This Row],[PRIS]]","v":48},{"$f":"IFERROR(IF(LagerListe[[#This Row],[MÆNGDE]]<=LagerListe[[#This Row],[ANTAL GENBESTILLINGER]],1,0),0)","v":1}]
[null,"Faxe",null,null,"I køleskab",0.33,28,33,4.13,{"$f":"LagerListe[[#This Row],[MÆNGDE]]*LagerListe[[#This Row],[PRIS]]","v":115.64},{"$f":"IFERROR(IF(LagerListe[[#This Row],[MÆNGDE]]<=LagerListe[[#This Row],[ANTAL GENBESTILLINGER]],1,0),0)","v":1}]
[null,"Coca Cola",null,null,"I køleskab",0.33,{"$f":"'FIFO-lagerstying'!G8","v":88},48,4.13,{"$f":"LagerListe[[#This Row],[MÆNGDE]]*LagerListe[[#This Row],[PRIS]]","v":363.44},{"$f":"IFERROR(IF(LagerListe[[#This Row],[MÆNGDE]]<=LagerListe[[#This Row],[ANTAL GENBESTILLINGER]],1,0),0)","v":0}]
[null,"Jordbærpuré",null,null,"Hylde",1,8,10,90,{"$f":"LagerListe[[#This Row],[MÆNGDE]]*LagerListe[[#This Row],[PRIS]]","v":720},{"$f":"IFERROR(IF(LagerListe[[#This Row],[MÆNGDE]]<=LagerListe[[#This Row],[ANTAL GENBESTILLINGER]],1,0),0)","v":1}]

{"sheet":"FIFO-lagerstying","index":2,"n_rows":10,"n_cols":7,"rows_kept":10,"cut":false,"hidden":false,"merged":[]}
[]
[null,"FIFO"]
[]
[null,"Dato","Vare","Stk pris","Købt","Solgt","Difference"]
[null,"2017-01-01","Cuba Caramel",90,12,null,{"$f":"Tabel5[[#This Row],[Købt]]-F7","v":11}]
[null,"2017-01-01","Vodka",90,12,null,{"$f":"Tabel5[[#This Row],[Købt]]","v":12}]
[null,"2017-01-01","Cuba Caramel",90,null,1]
[null,"2017-01-01","Coca Cola",3,88,null,{"$f":"Tabel5[[#This Row],[Købt]]","v":88}]
[null,"2017-02-02","Coca Cola"]
[null,"2017-02-03","Coca Cola"]

{"sheet":"Lagerplukliste","index":3,"n_rows":13,"n_cols":9,"rows_kept":13,"cut":false,"hidden":false,"merged":[]}
[null,"LAGERPLUKLISTE"]
[null,null,"LAGERLISTE"]
[]
[null,"ORDRENUMMER","VARENUMMER","PLUKANTAL","ANTAL TILGÆNGELIGE","VAREBESKRIVELSE","ENHED","BEHOLDERNUMMER","PLACERING"]
[null,"2022-07-05",{"$f":"Lager!B6","v":"Smirnoff"},1,{"$f":"IFERROR(VLOOKUP(LagerPlukListe[[#This Row],[VARENUMMER]],LagerListe[],6,FALSE),\"\")","v":3},{"$f":"IFERROR(VLOOKUP(LagerPlukListe[[#This Row],[VARENUMMER]],LagerListe[],2,FALSE),\"\")","v":0},{"$f":"IFERROR(VLOOKUP(LagerPlukListe[[#This Row],[VARENUMMER]],LagerListe[],5,FALSE),\"\")","v":0.7},{"$f":"IFERROR(VLOOKUP(LagerPlukListe[[#This Row],[VARENUMMER]],LagerListe[],3,FALSE),\"\")","v":"T345"},{"$f":"IFERROR(VLOOKUP(LagerPlukListe[[#This Row],[VARENUMMER]],LagerListe[],4,FALSE),\"\")","v":"Række 2, plads 1"}]
[null,"2022-07-05",{"$f":"Lager!B7","v":"Gin"},null,{"$f":"IFERROR(VLOOKUP(LagerPlukListe[[#This Row],[VARENUMMER]],LagerListe[],6,FALSE),\"\")","v":5},{"$f":"IFERROR(VLOOKUP(LagerPlukListe[[#This Row],[VARENUMMER]],LagerListe[],2,FALSE),\"\")","v":0},{"$f":"IFERROR(VLOOKUP(LagerPlukListe[[#This Row],[VARENUMMER]],LagerListe[],5,FALSE),\"\")","v":0.7},{"$f":"IFERROR(VLOOKUP(LagerPlukListe[[#This Row],[VARENUMMER]],LagerListe[],3,FALSE),\"\")","v":0},{"$f":"IFERROR(VLOOKUP(LagerPlukListe[[#This Row],[VARENUMMER]],LagerListe[],4,FALSE),\"\")","v":"Under rack"}]
[null,null,null,null,{"$f":"IFERROR(VLOOKUP(LagerPlukListe[[#This Row],[VARENUMMER]],LagerListe[],6,FALSE),\"\")","v":""},{"$f":"IFERROR(VLOOKUP(LagerPlukListe[[#This Row],[VARENUMMER]],LagerListe[],2,FALSE),\"\")","v":""},{"$f":"IFERROR(VLOOKUP(LagerPlukListe[[#This Row],[VARENUMMER]],LagerListe[],5,FALSE),\"\")","v":""},{"$f":"IFERROR(VLOOKUP(LagerPlukListe[[#This Row],[VARENUMMER]],LagerListe[],3,FALSE),\"\")","v":""},{"$f":"IFERROR(VLOOKUP(LagerPlukListe[[#This Row],[VARENUMMER]],LagerListe[],4,FALSE),\"\")","v":""}]
[null,null,null,null,{"$f":"IFERROR(VLOOKUP(LagerPlukListe[[#This Row],[VARENUMMER]],LagerListe[],6,FALSE),\"\")","v":""},{"$f":"IFERROR(VLOOKUP(LagerPlukListe[[#This Row],[VARENUMMER]],LagerListe[],2,FALSE),\"\")","v":""},{"$f":"IFERROR(VLOOKUP(LagerPlukListe[[#This Row],[VARENUMMER]],LagerListe[],5,FALSE),\"\")","v":""},{"$f":"IFERROR(VLOOKUP(LagerPlukListe[[#This Row],[VARENUMMER]],LagerListe[],3,FALSE),\"\")","v":""},{"$f":"IFERROR(VLOOKUP(LagerPlukListe[[#This Row],[VARENUMMER]],LagerListe[],4,FALSE),\"\")","v":""}]
[null,null,null,null,{"$f":"IFERROR(VLOOKUP(LagerPlukListe[[#This Row],[VARENUMMER]],LagerListe[],6,FALSE),\"\")","v":""},{"$f":"IFERROR(VLOOKUP(LagerPlukListe[[#This Row],[VARENUMMER]],LagerListe[],2,FALSE),\"\")","v":""},{"$f":"IFERROR(VLOOKUP(LagerPlukListe[[#This Row],[VARENUMMER]],LagerListe[],5,FALSE),\"\")","v":""},{"$f":"IFERROR(VLOOKUP(LagerPlukListe[[#This Row],[VARENUMMER]],LagerListe[],3,FALSE),\"\")","v":""},{"$f":"IFERROR(VLOOKUP(LagerPlukListe[[#This Row],[VARENUMMER]],LagerListe[],4,FALSE),\"\")","v":""}]
[null,null,null,null,{"$f":"IFERROR(VLOOKUP(LagerPlukListe[[#This Row],[VARENUMMER]],LagerListe[],6,FALSE),\"\")","v":""},{"$f":"IFERROR(VLOOKUP(LagerPlukListe[[#This Row],[VARENUMMER]],LagerListe[],2,FALSE),\"\")","v":""},{"$f":"IFERROR(VLOOKUP(LagerPlukListe[[#This Row],[VARENUMMER]],LagerListe[],5,FALSE),\"\")","v":""},{"$f":"IFERROR(VLOOKUP(LagerPlukListe[[#This Row],[VARENUMMER]],LagerListe[],3,FALSE),\"\")","v":""},{"$f":"IFERROR(VLOOKUP(LagerPlukListe[[#This Row],[VARENUMMER]],LagerListe[],4,FALSE),\"\")","v":""}]
[null,null,null,null,{"$f":"IFERROR(VLOOKUP(LagerPlukListe[[#This Row],[VARENUMMER]],LagerListe[],6,FALSE),\"\")","v":""},{"$f":"IFERROR(VLOOKUP(LagerPlukListe[[#This Row],[VARENUMMER]],LagerListe[],2,FALSE),\"\")","v":""},{"$f":"IFERROR(VLOOKUP(LagerPlukListe[[#This Row],[VARENUMMER]],LagerListe[],5,FALSE),\"\")","v":""},{"$f":"IFERROR(VLOOKUP(LagerPlukListe[[#This Row],[VARENUMMER]],LagerListe[],3,FALSE),\"\")","v":""},{"$f":"IFERROR(VLOOKUP(LagerPlukListe[[#This Row],[VARENUMMER]],LagerListe[],4,FALSE),\"\")","v":""}]
[null,null,null,null,{"$f":"IFERROR(VLOOKUP(LagerPlukListe[[#This Row],[VARENUMMER]],LagerListe[],6,FALSE),\"\")","v":""},{"$f":"IFERROR(VLOOKUP(LagerPlukListe[[#This Row],[VARENUMMER]],LagerListe[],2,FALSE),\"\")","v":""},{"$f":"IFERROR(VLOOKUP(LagerPlukListe[[#This Row],[VARENUMMER]],LagerListe[],5,FALSE),\"\")","v":""},{"$f":"IFERROR(VLOOKUP(LagerPlukListe[[#This Row],[VARENUMMER]],LagerListe[],3,FALSE),\"\")","v":""},{"$f":"IFERROR(VLOOKUP(LagerPlukListe[[#This Row],[VARENUMMER]],LagerListe[],4,FALSE),\"\")","v":""}]
[null,null,null,null,{"$f":"IFERROR(VLOOKUP(LagerPlukListe[[#This Row],[VARENUMMER]],LagerListe[],6,FALSE),\"\")","v":""},{"$f":"IFERROR(VLOOKUP(LagerPlukListe[[#This Row],[VARENUMMER]],LagerListe[],2,FALSE),\"\")","v":""},{"$f":"IFERROR(VLOOKUP(LagerPlukListe[[#This Row],[VARENUMMER]],LagerListe[],5,FALSE),\"\")","v":""},{"$f":"IFERROR(VLOOKUP(LagerPlukListe[[#This Row],[VARENUMMER]],LagerListe[],3,FALSE),\"\")","v":""},{"$f":"IFERROR(VLOOKUP(LagerPlukListe[[#This Row],[VARENUMMER]],LagerListe[],4,FALSE),\"\")","v":""}]

{"sheet":"Søg i beholdere","index":4,"n_rows":11,"n_cols":7,"rows_kept":11,"cut":false,"hidden":false,"merged":[]}
[null,"SØG I BEHOLDERE"]
[null,"LAGERLISTE"]
[]
[null,"BEHOLDERNUMMER","BESKRIVELSE","PLACERING","BREDDE","HØJDE","LÆNGDE"]
[null,"T345","Stor beholder","Række 2, plads 1",50,10,10]
[null,"T5789","Lille beholder","Række 1, plads 1",25,5,5]
[null,"T9876","Stor beholder","Række 3, plads 2",50,10,10]
[null,"T098","Mellem beholder","Række 3, plads 1",30,7,10]
[null,"T349","Lille beholder","Række 1, plads 2",25,5,5]
[null,"T5789","Stor beholder","Række 4, plads 5",50,10,10]
[null,"T9875","Stor beholder","Række 2, plads 2",50,10,10]